[Event "Bundesturnier Hauptturnier 1 2024"]
[Site "Olten"]
[Date "2024.05.11"]
[Round "6.6"]
[White "Gryshko, Vitalii"]
[Black "Retti, Ivan"]
[Result "1-0"]
[ECO "B33"]
[WhiteElo "2316"]
[BlackElo "2076"]
[Annotator "ChessBase"]
[PlyCount "71"]
[EventDate "2024.05.09"]
[EventType "tourn"]
[EventCountry "SUI"]
[SourceTitle "playchess.com"]
[Source "ChessBase"]
[SourceQuality "1"]
[TimeControl "5400+30"]

1. e4 {[%emt 0:00:01]} c5 {[%emt 0:00:08]} 2. Nf3 {[%emt 0:00:12]} Nc6 {[%emt 0:00:05]} 3. d4 {[%emt 0:01:26]} cxd4 {[%emt 0:00:09]} 4. Nxd4 {[%emt 0:00:03]} Nf6 {[%emt 0:00:10]} 5. Nc3 {[%emt 0:00:08]} e5 {[%emt 0:00:07]} 6. Ndb5 {[%emt 0:00:04]} d6 {[%emt 0:00:06]} 7. Bg5 {[%emt 0:00:53]} a6 {[%emt 0:00:09]} 8. Bxf6 {[%emt 0:02:52]} gxf6 {[%emt 0:00:09]} 9. Na3 {[%emt 0:00:02]} b5 {[%emt 0:00:21]} 10. Nd5 {[%emt 0:00:15]} f5 {[%emt 0:00:08]} 11. c3 {[%emt 0:01:05]} Bg7 {[%emt 0:05:42]} 12. Nc2 {[%emt 0:01:02]} O-O {[%emt 0:00:28]} 13. exf5 {[%emt 0:00:03]} Bxf5 {[%emt 0:00:12]} 14. Nce3 {[%emt 0:00:01]} Be6 {[%emt 0:01:10]} 15. Bd3 {[%emt 0:00:04]} f5 {[%emt 0:07:08]} 16. Qh5 {[%emt 0:00:04]} e4 {[%emt 0:00:20]} 17. Bc2 {[%emt 0:01:21]} Ne7 {[%emt 0:24:45]} 18. Nf4 {[%emt 0:04:34]} Bf7 {[%emt 0:01:14]} 19. Qh3 {[%emt 0:00:42]} Be5 {[%emt 0:02:01]} 20. Ne2 {[%emt 0:08:53]} Qc8 {[%emt 0:05:41]} 21. O-O {[%emt 0:06:09]} Be6 {[%emt 0:01:58]} 22. f4 {[%emt 0:02:24]} Bg7 {[%emt 0:04:46]} 23. Rfd1 {[%emt 0:00:50]} d5 {[%emt 0:00:31]} 24. Bb3 {[%emt 0:01:45]} Qc5 {[%emt 0:00:37]} 25. Kh1 {[%emt 0:03:19]} Kh8 {[%emt 0:00:28]} 26. Nd4 {[%emt 0:02:41]} Bxd4 {[%emt 0:00:52]} 27. Rxd4 {[%emt 0:00:14]} Rf6 {[%emt 0:00:33]} 28. Rad1 {[%emt 0:01:38]} Rd8 {[%emt 0:00:05]} 29. Qh4 {[%emt 0:02:31]} Kg7 {[%emt 0:04:31]} 30. Qf2 {[%emt 0:00:04]} Bf7 {[%emt 0:01:40]} 31. Rxd5 {[%emt 0:03:32]} Qxe3 {[%emt 0:05:11]} 32. Qxe3 {[%emt 0:00:33]} Bxd5 {[%emt 0:00:05]} 33. Qa7 {[%emt 0:03:46]} Kf8 {[%emt 0:06:21]} 34. Rxd5 {[%emt 0:02:02]} Rxd5 {[%emt 0:00:04]} 35. Bxd5 {[%emt 0:00:22]} Nxd5 {[%emt 0:00:04]} 36. Qa8+ {[%emt 0:00:03]} 1-0

[Event "Bundesturnier Hauptturnier 1 2024"]
[Site "Olten"]
[Date "2024.05.11"]
[Round "6.7"]
[White "Joie, Sebastien"]
[Black "Bous, Florian"]
[Result "1-0"]
[ECO "C47"]
[WhiteElo "2382"]
[BlackElo "1970"]
[Annotator "ChessBase"]
[PlyCount "47"]
[EventDate "2024.05.09"]
[EventType "tourn"]
[EventCountry "SUI"]
[SourceTitle "playchess.com"]
[Source "ChessBase"]
[SourceQuality "1"]
[TimeControl "5400+30"]

1. e4 {[%emt 0:01:04]} e5 {[%emt 0:00:07]} 2. Nf3 {[%emt 0:00:07]} Nc6 {[%emt 0:00:07]} 3. Nc3 {[%emt 0:00:05]} Nf6 {[%emt 0:00:12]} 4. a4 {[%emt 0:00:04]} d5 {[%emt 0:05:30]} 5. exd5 {[%emt 0:00:21]} Nxd5 {[%emt 0:00:15]} 6. Bb5 {[%emt 0:00:04]} Nxc3 {[%emt 0:03:43]} 7. bxc3 {[%emt 0:00:11]} Bd7 {[%emt 0:02:36]} 8. d4 {[%emt 0:03:49]} exd4 {[%emt 0:04:19]} 9. O-O {[%emt 0:00:13]} Be7 {[%emt 0:05:43]} 10. cxd4 {[%emt 0:00:09]} O-O {[%emt 0:00:49]} 11. Re1 {[%emt 0:01:29]} Bf6 {[%emt 0:04:38]} 12. c3 {[%emt 0:00:43]} Re8 {[%emt 0:03:02]} 13. Rxe8+ {[%emt 0:03:48]} Bxe8 {[%emt 0:00:53]} 14. Bf4 {[%emt 0:00:19]} a6 {[%emt 0:00:53]} 15. Bd3 {[%emt 0:01:22]} Ne7 {[%emt 0:01:12]} 16. Qb1 {[%emt 0:00:27]} c5 {[%emt 0:04:29]} 17. Bxh7+ {[%emt 0:05:11]} Kh8 {[%emt 0:00:08]} 18. Be4 {[%emt 0:00:13]} cxd4 {[%emt 0:01:59]} 19. Qxb7 {[%emt 0:05:33]} Rc8 {[%emt 0:02:57]} 20. cxd4 {[%emt 0:00:11]} Nc6 {[%emt 0:04:22]} 21. Rc1 {[%emt 0:07:29]} Bxd4 {[%emt 0:11:17]} 22. Bxc6 {[%emt 0:04:09]} Bxc6 {[%emt 0:01:29]} 23. Rxc6 {[%emt 0:00:14]} Be5 {[%emt 0:00:52]} 24. Rxc8 {[%emt 0:00:10]} 1-0

[Event "Bundesturnier Hauptturnier 1 2024"]
[Site "Olten"]
[Date "2024.05.11"]
[Round "6.8"]
[White "Szakolczai, Peter"]
[Black "Sutter, Oliver"]
[Result "1/2-1/2"]
[ECO "B30"]
[WhiteElo "2183"]
[BlackElo "2304"]
[Annotator "ChessBase"]
[PlyCount "47"]
[EventDate "2024.05.09"]
[EventType "tourn"]
[EventCountry "SUI"]
[SourceTitle "playchess.com"]
[Source "ChessBase"]
[SourceQuality "1"]
[TimeControl "5400+30"]

1. e4 {[%emt 0:12:16]} c5 {[%emt 0:00:07]} 2. Nc3 {[%emt 0:00:35]} e6 {[%emt 0:00:58]} 3. Nf3 {[%emt 0:00:52]} Nc6 {[%emt 0:00:16]} 4. Bb5 {[%emt 0:01:02]} Nge7 {[%emt 0:01:48]} 5. O-O {[%emt 0:03:26]} a6 {[%emt 0:00:11]} 6. Bxc6 {[%emt 0:00:29]} Nxc6 {[%emt 0:00:07]} 7. d4 {[%emt 0:00:26]} cxd4 {[%emt 0:00:08]} 8. Nxd4 {[%emt 0:00:06]} Qc7 {[%emt 0:03:01]} 9. Re1 {[%emt 0:05:15]} Be7 {[%emt 0:03:49]} 10. a4 {[%emt 0:33:52]} O-O {[%emt 0:01:03]} 11. Be3 {[%emt 0:00:31]} d6 {[%emt 0:01:49]} 12. Nxc6 {[%emt 0:03:29]} bxc6 {[%emt 0:01:30]} 13. a5 {[%emt 0:00:26]} c5 {[%emt 0:01:01]} 14. Qd2 {[%emt 0:07:24]} Bb7 {[%emt 0:02:09]} 15. Bg5 {[%emt 0:01:34]} Bxg5 {[%emt 0:15:12]} 16. Qxg5 {[%emt 0:00:03]} Rad8 {[%emt 0:00:38]} 17. Ra3 {[%emt 0:01:01]} d5 {[%emt 0:04:18]} 18. e5 {[%emt 0:01:21]} f6 {[%emt 0:01:52]} 19. exf6 {[%emt 0:07:31]} Rxf6 {[%emt 0:00:08]} 20. Qg3 {[%emt 0:00:23]} Qc6 {[%emt 0:09:35]} 21. f3 {[%emt 0:00:38]} Rdf8 {[%emt 0:02:45]} 22. Rb3 {[%emt 0:00:24]} Qc8 {[%emt 0:04:46]} 23. Rb6 {[%emt 0:01:20]} Re8 {[%emt 0:08:49]} 24. Qh3 {[%emt 0:01:49]} 1/2-1/2

[Event "Bundesturnier Hauptturnier 1 2024"]
[Site "Olten"]
[Date "2024.05.11"]
[Round "6.9"]
[White "Gautier, Anand"]
[Black "Pahud, Cedric"]
[Result "1-0"]
[ECO "C55"]
[WhiteElo "2274"]
[BlackElo "2135"]
[Annotator "ChessBase"]
[PlyCount "105"]
[EventDate "2024.05.09"]
[EventType "tourn"]
[EventCountry "SUI"]
[SourceTitle "playchess.com"]
[Source "ChessBase"]
[SourceQuality "1"]
[TimeControl "5400+30"]

1. e4 {[%emt 0:04:52]} e5 {[%emt 0:00:35]} 2. Nf3 {[%emt 0:00:06]} Nc6 {[%emt 0:00:03]} 3. Bc4 {[%emt 0:00:04]} Nf6 {[%emt 0:00:05]} 4. d3 {[%emt 0:00:04]} Bc5 {[%emt 0:00:45]} 5. c3 {[%emt 0:00:10]} O-O {[%emt 0:01:35]} 6. O-O {[%emt 0:00:06]} d5 {[%emt 0:00:57]} 7. exd5 {[%emt 0:00:06]} Nxd5 {[%emt 0:00:03]} 8. Re1 {[%emt 0:00:08]} Bg4 {[%emt 0:00:55]} 9. Nbd2 {[%emt 0:00:18]} Nb6 {[%emt 0:01:20]} 10. h3 {[%emt 0:00:48]} Bh5 {[%emt 0:00:44]} 11. Bb5 {[%emt 0:11:19]} Bd6 {[%emt 0:00:20]} 12. Ne4 {[%emt 0:03:12]} a5 {[%emt 0:14:48]} 13. Bxc6 {[%emt 0:27:30]} bxc6 {[%emt 0:01:41]} 14. Ng3 {[%emt 0:02:29]} Bg6 {[%emt 0:01:48]} 15. d4 {[%emt 0:13:12]} exd4 {[%emt 0:01:32]} 16. Nxd4 {[%emt 0:00:29]} c5 {[%emt 0:04:45]} 17. Ndf5 {[%emt 0:03:35]} Bxg3 {[%emt 0:01:22]} 18. Ne7+ {[%emt 0:04:13]} Kh8 {[%emt 0:00:11]} 19. Nxg6+ {[%emt 0:00:29]} hxg6 {[%emt 0:00:15]} 20. fxg3 {[%emt 0:00:19]} Qxd1 {[%emt 0:00:52]} 21. Rxd1 {[%emt 0:00:01]} Rad8 {[%emt 0:00:19]} 22. Be3 {[%emt 0:01:33]} c4 {[%emt 0:01:50]} 23. Kf2 {[%emt 0:07:28]} Na4 {[%emt 0:02:00]} 24. Bf4 {[%emt 0:10:26]} Nxb2 {[%emt 0:05:23]} 25. Rxd8 {[%emt 0:00:46]} Rxd8 {[%emt 0:00:12]} 26. Bxc7 {[%emt 0:00:30]} Rd2+ {[%emt 0:00:53]} 27. Kf3 {[%emt 0:01:21]} a4 {[%emt 0:02:06]} 28. Be5 {[%emt 0:00:36]} Nd3 {[%emt 0:36:57]} 29. Bd4 {[%emt 0:02:19]} a3 {[%emt 0:00:49]} 30. g4 {[%emt 0:02:28]} f6 {[%emt 0:01:20]} 31. h4 {[%emt 0:02:18]} Kg8 {[%emt 0:00:10]} 32. g5 {[%emt 0:00:50]} Kf7 {[%emt 0:00:08]} 33. gxf6 {[%emt 0:00:34]} gxf6 {[%emt 0:00:11]} 34. g4 {[%emt 0:00:31]} Rc2 {[%emt 0:02:36]} 35. h5 {[%emt 0:02:09]} gxh5 {[%emt 0:00:15]} 36. gxh5 {[%emt 0:00:01]} Nc1 {[%emt 0:01:47]} 37. Rb1 {[%emt 0:00:41]} Nxa2 {[%emt 0:00:19]} 38. Rb7+ {[%emt 0:00:07]} Kg8 {[%emt 0:02:56]} 39. h6 {[%emt 0:01:12]} Rh2 {[%emt 0:00:17]} 40. Rg7+ {[%emt 0:00:34]} Kf8 {[%emt 0:01:38]} 41. Bc5+ {[%emt 0:00:16]} Ke8 {[%emt 0:00:09]} 42. h7 {[%emt 0:00:26]} Nxc3 {[%emt 0:01:02]} 43. Bxa3 {[%emt 0:00:38]} Nb5 {[%emt 0:04:06]} 44. Bc5 {[%emt 0:00:22]} c3 {[%emt 0:00:35]} 45. Rg8+ {[%emt 0:00:09]} Kf7 {[%emt 0:00:04]} 46. h8=Q {[%emt 0:00:07]} Rxh8 {[%emt 0:00:35]} 47. Rxh8 {[%emt 0:00:04]} c2 {[%emt 0:00:41]} 48. Rh1 {[%emt 0:00:16]} Nc3 {[%emt 0:01:15]} 49. Rc1 {[%emt 0:00:23]} Na4 {[%emt 0:02:38]} 50. Bd4 {[%emt 0:00:14]} Ke6 {[%emt 0:00:29]} 51. Rxc2 {[%emt 0:00:05]} Kd5 {[%emt 0:00:11]} 52. Ra2 {[%emt 0:00:10]} Kxd4 {[%emt 0:00:43]} 53. Rxa4+ {[%emt 0:00:03]} 1-0

[Event "Bundesturnier Hauptturnier 1 2024"]
[Site "Olten"]
[Date "2024.05.11"]
[Round "6.10"]
[White "Prunescu, Claudiu"]
[Black "Artan, Tamir"]
[Result "1/2-1/2"]
[ECO "A46"]
[WhiteElo "2249"]
[BlackElo "1908"]
[Annotator "ChessBase"]
[PlyCount "61"]
[EventDate "2024.05.09"]
[EventType "tourn"]
[EventCountry "SUI"]
[SourceTitle "playchess.com"]
[Source "ChessBase"]
[SourceQuality "1"]
[TimeControl "5400+30"]

1. Nf3 {[%emt 0:00:22]} Nf6 {[%emt 0:11:44]} 2. d4 {[%emt 0:00:27]} e6 {[%emt 0:00:07]} 3. Bg5 {[%emt 0:01:55]} Be7 {[%emt 0:06:30]} 4. c4 {[%emt 0:02:45]} Ne4 {[%emt 0:04:02]} 5. Bxe7 {[%emt 0:02:06]} Qxe7 {[%emt 0:00:13]} 6. Nbd2 {[%emt 0:02:35]} Nxd2 {[%emt 0:01:36]} 7. Qxd2 {[%emt 0:00:13]} d6 {[%emt 0:00:23]} 8. e3 {[%emt 0:02:03]} e5 {[%emt 0:01:52]} 9. Qc3 {[%emt 0:00:59]} Nd7 {[%emt 0:00:28]} 10. Be2 {[%emt 0:01:23]} b6 {[%emt 0:01:07]} 11. O-O {[%emt 0:02:22]} O-O {[%emt 0:00:56]} 12. dxe5 {[%emt 0:02:58]} dxe5 {[%emt 0:01:31]} 13. Rfd1 {[%emt 0:00:41]} Bb7 {[%emt 0:01:19]} 14. b4 {[%emt 0:01:58]} Rad8 {[%emt 0:02:16]} 15. Rac1 {[%emt 0:06:37]} Bxf3 {[%emt 0:09:41]} 16. Bxf3 {[%emt 0:01:14]} e4 {[%emt 0:00:21]} 17. Be2 {[%emt 0:00:28]} Nf6 {[%emt 0:08:53]} 18. c5 {[%emt 0:01:43]} Rxd1+ {[%emt 0:02:26]} 19. Rxd1 {[%emt 0:07:48]} Rd8 {[%emt 0:12:34]} 20. Rxd8+ {[%emt 0:04:50]} Qxd8 {[%emt 0:00:05]} 21. cxb6 {[%emt 0:00:53]} cxb6 {[%emt 0:01:00]} 22. h3 {[%emt 0:00:56]} h6 {[%emt 0:01:24]} 23. a3 {[%emt 0:01:03]} Qd6 {[%emt 0:04:42]} 24. Qc8+ {[%emt 0:01:03]} Kh7 {[%emt 0:00:07]} 25. Qc2 {[%emt 0:00:15]} Kg8 {[%emt 0:00:58]} 26. Qc3 {[%emt 0:01:43]} Qd5 {[%emt 0:02:44]} 27. g3 {[%emt 0:07:30]} Qe6 {[%emt 0:02:08]} 28. Kg2 {[%emt 0:01:06]} Qd7 {[%emt 0:04:13]} 29. Qc2 {[%emt 0:04:26]} Kf8 {[%emt 0:01:24]} 30. Qc3 {[%emt 0:02:02]} Kg8 {[%emt 0:00:43]} 31. Qc2 {[%emt 0:01:16]} 1/2-1/2

[Event "Bundesturnier Hauptturnier 1 2024"]
[Site "Olten"]
[Date "2024.05.11"]
[Round "6.11"]
[White "Drechsler, Christoph"]
[Black "Kamber, Bruno"]
[Result "1-0"]
[ECO "A48"]
[WhiteElo "2099"]
[BlackElo "2217"]
[Annotator "ChessBase"]
[PlyCount "107"]
[EventDate "2024.05.09"]
[EventType "tourn"]
[EventCountry "SUI"]
[SourceTitle "playchess.com"]
[Source "ChessBase"]
[SourceQuality "1"]
[TimeControl "5400+30"]

1. d4 {[%emt 0:00:04]} Nf6 {[%emt 0:06:20]} 2. Nf3 {[%emt 0:00:17]} c5 {[%emt 0:00:09]} 3. e3 {[%emt 0:01:24]} g6 {[%emt 0:00:37]} 4. Nbd2 {[%emt 0:00:54]} b6 {[%emt 0:04:04]} 5. Be2 {[%emt 0:01:30]} Bg7 {[%emt 0:00:11]} 6. O-O {[%emt 0:00:17]} O-O {[%emt 0:00:11]} 7. c3 {[%emt 0:02:13]} Bb7 {[%emt 0:01:55]} 8. b4 {[%emt 0:00:14]} d6 {[%emt 0:03:05]} 9. bxc5 {[%emt 0:01:23]} dxc5 {[%emt 0:02:00]} 10. a4 {[%emt 0:02:03]} Nc6 {[%emt 0:02:02]} 11. Ba3 {[%emt 0:01:19]} Qc7 {[%emt 0:03:04]} 12. Qb1 {[%emt 0:01:44]} Rfd8 {[%emt 0:02:55]} 13. Rc1 {[%emt 0:00:38]} Rac8 {[%emt 0:07:53]} 14. Nc4 {[%emt 0:05:24]} Ng4 {[%emt 0:12:25]} 15. h3 {[%emt 0:02:19]} Nf6 {[%emt 0:06:36]} 16. a5 {[%emt 0:01:22]} Nd7 {[%emt 0:04:14]} 17. axb6 {[%emt 0:05:19]} axb6 {[%emt 0:00:11]} 18. Qb3 {[%emt 0:06:55]} Ba6 {[%emt 0:06:48]} 19. Ng5 {[%emt 0:00:59]} e6 {[%emt 0:07:35]} 20. Bf1 {[%emt 0:11:15]} Ra8 {[%emt 0:02:30]} 21. Bb2 {[%emt 0:04:33]} Bb7 {[%emt 0:09:11]} 22. f4 {[%emt 0:03:33]} Rxa1 {[%emt 0:01:14]} 23. Rxa1 {[%emt 0:01:50]} cxd4 {[%emt 0:06:31]} 24. cxd4 {[%emt 0:00:25]} Ne7 {[%emt 0:03:03]} 25. Rc1 {[%emt 0:02:38]} Bd5 {[%emt 0:01:19]} 26. Qa3 {[%emt 0:01:49]} Nc6 {[%emt 0:02:27]} 27. Nd2 {[%emt 0:02:52]} Bf8 {[%emt 0:01:30]} 28. Qc3 {[%emt 0:01:11]} Qb8 {[%emt 0:02:39]} 29. Ba3 {[%emt 0:01:54]} Ne7 {[%emt 0:00:56]} 30. Qd3 {[%emt 0:06:32]} Nf6 {[%emt 0:00:31]} 31. Be2 {[%emt 0:02:45]} Ba8 {[%emt 0:00:26]} 32. Nc4 {[%emt 0:02:01]} Nf5 {[%emt 0:00:54]} 33. Bxf8 {[%emt 0:00:59]} Rxf8 {[%emt 0:00:17]} 34. Bf3 {[%emt 0:03:01]} Nd5 {[%emt 0:00:18]} 35. Bxd5 {[%emt 0:04:00]} Bxd5 {[%emt 0:00:21]} 36. Ne5 {[%emt 0:00:16]} Qa7 {[%emt 0:00:34]} 37. e4 {[%emt 0:01:19]} f6 {[%emt 0:00:18]} 38. exd5 {[%emt 0:04:29]} fxg5 {[%emt 0:00:10]} 39. dxe6 {[%emt 0:00:59]} Qa2 {[%emt 0:00:27]} 40. Nd7 {[%emt 0:01:55]} Nh4 {[%emt 0:01:33]} 41. Rc2 {[%emt 0:00:37]} Qa1+ {[%emt 0:00:57]} 42. Kh2 {[%emt 0:00:05]} Rxf4 {[%emt 0:00:26]} 43. e7 {[%emt 0:02:33]} Qa8 {[%emt 0:00:30]} 44. Qe3 {[%emt 0:01:23]} Kf7 {[%emt 0:00:17]} 45. d5 {[%emt 0:01:36]} Qe8 {[%emt 0:00:33]} 46. Qe6+ {[%emt 0:00:57]} Kg7 {[%emt 0:00:07]} 47. Qe5+ {[%emt 0:00:52]} Kf7 {[%emt 0:00:13]} 48. Rc7 {[%emt 0:01:54]} Rf2 {[%emt 0:00:11]} 49. Kh1 {[%emt 0:01:26]} Rf1+ {[%emt 0:00:10]} 50. Kh2 {[%emt 0:00:16]} Rf2 {[%emt 0:00:02]} 51. Qe6+ {[%emt 0:01:29]} Kg7 {[%emt 0:00:01]} 52. Nf8 {[%emt 0:02:48]} Qa4 {[%emt 0:01:39]} 53. e8=N+ {[%emt 0:01:50]} Kxf8 {[%emt 0:00:21]} 54. Qe7+ {[%emt 0:00:53]} 1-0

[Event "Bundesturnier Hauptturnier 1 2024"]
[Site "Olten"]
[Date "2024.05.11"]
[Round "6.12"]
[White "Rotunno, Flavio"]
[Black "Akermann, Thomas"]
[Result "1/2-1/2"]
[ECO "A21"]
[WhiteElo "2105"]
[BlackElo "2155"]
[Annotator "ChessBase"]
[PlyCount "34"]
[EventDate "2024.05.09"]
[EventType "tourn"]
[EventCountry "SUI"]
[SourceTitle "playchess.com"]
[Source "ChessBase"]
[SourceQuality "1"]
[TimeControl "5400+30"]

1. d4 {[%emt 0:00:45]} d6 {[%emt 0:00:06]} 2. c4 {[%emt 0:00:03]} e5 {[%emt 0:00:10]} 3. Nf3 {[%emt 0:00:05]} e4 {[%emt 0:00:12]} 4. Ng5 {[%emt 0:00:04]} f5 {[%emt 0:00:12]} 5. Nh3 {[%emt 0:00:20]} c6 {[%emt 0:01:00]} 6. Nc3 {[%emt 0:00:10]} Be7 {[%emt 0:00:24]} 7. e3 {[%emt 0:05:48]} Nf6 {[%emt 0:01:08]} 8. Be2 {[%emt 0:00:36]} Na6 {[%emt 0:01:30]} 9. Nf4 {[%emt 0:03:41]} Nc7 {[%emt 0:03:00]} 10. h4 {[%emt 0:04:25]} O-O {[%emt 0:04:31]} 11. Qc2 {[%emt 0:07:19]} Bd7 {[%emt 0:01:22]} 12. b3 {[%emt 0:01:19]} b5 {[%emt 0:00:40]} 13. g3 {[%emt 0:01:56]} d5 {[%emt 0:23:04]} 14. Kf1 {[%emt 0:06:02]} Be8 {[%emt 0:03:55]} 15. Bd2 {[%emt 0:09:05]} Qd7 {[%emt 0:00:23]} 16. Kg2 {[%emt 0:01:50]} Bf7 {[%emt 0:00:12]} 17. c5 {[%emt 0:09:32]} a5 {[%emt 0:13:15]} 1/2-1/2

[Event "Bundesturnier Hauptturnier 1 2024"]
[Site "Olten"]
[Date "2024.05.12"]
[Round "7.1"]
[White "Bauer, Christian"]
[Black "Willems, Niels"]
[Result "1-0"]
[ECO "B12"]
[WhiteElo "2576"]
[BlackElo "2329"]
[Annotator "TA"]
[PlyCount "77"]
[EventDate "2024.05.09"]
[EventType "tourn"]
[EventCountry "SUI"]
[SourceTitle "playchess.com"]
[Source "ChessBase"]
[SourceQuality "1"]
[TimeControl "5400+30"]

{[%evp 9,77,1,29,22,33,18,30,35,19,0,39,31,75,50,58,43,80,55,66,68,72,21,68,82,83,68,77,79,110,53,107,104,213,198,308,308,308,314,293,268,437,341,375,374,380,368,468,435,541,408,493,545,611,609,855,834,870,853,872,852,876,862,974,907,945,943,4802,1615,29964,6008]} 1. e4 {[%emt 0:01:24]} c6 {[%emt 0:00:13]} 2. d4 {[%emt 0:00:20]} d5 {[%emt 0:00:05]} 3. f3 {[%emt 0:02:08]} dxe4 {[%emt 0:00:22]} 4. fxe4 {[%emt 0:00:13]} e5 {[%emt 0:00:08]} 5. Nf3 {[%emt 0:00:07]} Bg4 {[%emt 0:00:13]} 6. c3 {[%emt 0:03:50]} Nd7 {[%emt 0:00:30]} 7. Bd3 {[%emt 0:00:47]} Bd6 {[%emt 0:02:06]} 8. O-O {[%emt 0:01:44] White has an edge.} Ngf6 {[%emt 0:00:26]} 9. Na3 {[%emt 0:04:48][%cal Bb1a3,Ba3c2,Bc2e3,Be3f5,Bf5e7][%mdl 32]} b5 {[%emt 0:17:34] Wards off Nc4} 10. Nc2 {[%emt 0:03:27]} Bh5 {[%emt 0:04:48]} 11. Bg5 {[%emt 0:05:24]} Qc7 {[%emt 0:06:22]} 12. Ne3 {[%emt 0:15:28]} exd4 {[%emt 0:04:27]} 13. cxd4 {[%emt 0:00:50]} Bxh2+ {[%emt 0:00:25]} 14. Kh1 {[%emt 0:00:09]} Bf4 {[%emt 0:00:22] [#] Strongly threatening ...Bxg5.} 15. Nf5 {[%emt 0:10:00] aiming for Bxf6.} O-O {[%emt 0:12:09]} (15... Bxg5 $1 $11 16. Nxg7+ Ke7) 16. Bxf4 $14 {[%emt 0:03:39] Black is now going downhill.} Qxf4 {[%emt 0:00:11]} 17. Qc1 $36 {[%emt 0:01:26][%mdl 2048] White has the initiative.} (17. Qe1 {with more complications.} Rae8 18. Ne5 Qg5 19. Nxc6 Bg6 20. e5) 17... Qxc1 {[%emt 0:23:14]} 18. Raxc1 {[%emt 0:00:12]} Nb8 {[%emt 0:10:37]} 19. Ne7+ {[%emt 0:06:49]} Kh8 {[%emt 0:00:00] [#]} 20. e5 $1 {[%emt 0:01:21] White has more active pieces. The black rooks are passive.} Ng4 {[%emt 0:02:12]} (20... Ng8 $16 {might work better.} 21. Nf5 (21. Nxc6 Nxc6 22. Rxc6 Rad8 $16) 21... a5) 21. Ng5 $1 $18 {[%emt 0:09:32][%cal Od3e2]} (21. Nxc6 $6 Nxc6 22. Rxc6 Rad8 $16) 21... Re8 {[%emt 0:03:29]} (21... Ne3 $142) 22. Nxf7+ {[%emt 0:10:56]} (22. Nxc6 Nxc6 23. Rxc6 Re7 $16) 22... Bxf7 {[%emt 0:00:01]} 23. Rxf7 {[%emt 0:00:07]} Nh6 {[%emt 0:01:03] Black is weak on the light squares} 24. Rf3 {[%emt 0:04:25]} (24. Rcf1 Nxf7 25. Rxf7 a5 $16) 24... Ng8 $2 {[%emt 0:07:16]} (24... g6) 25. Nxc6 {[%emt 0:06:06]} Nxc6 {[%emt 0:00:01]} 26. Rxc6 {[%emt 0:00:01]} Rad8 {[%emt 0:00:34]} 27. Rf4 {[%emt 0:03:15]} (27. Bxb5 Rxd4 28. Rc5 Rh4+ 29. Rh3 Rxh3+ 30. gxh3 Rf8) 27... Ne7 {[%emt 0:02:02][%cal Bg8e7,Be7d5,Bd5e3][%mdl 32]} 28. Re6 {[%emt 0:01:13]} Nd5 {[%emt 0:02:17]} 29. Rxe8+ {[%emt 0:00:27]} Rxe8 {[%emt 0:00:01][%mdl 4096] Endgame. KRB-KRN} 30. Rf7 {[%emt 0:02:19]} a6 {[%emt 0:00:29]} 31. Be4 {[%emt 0:00:08]} Ne3 {[%emt 0:00:30]} 32. Bc6 {[%emt 0:00:41][%cal Oe5e6] White threatens e6! and mate.} Rc8 {[%emt 0:01:23]} 33. d5 {[%emt 0:00:14][%cal Od5d6] And now d6! would win.} Kg8 {[%emt 0:00:14]} 34. e6 {[%emt 0:00:30][%cal Od5d6]} Nc4 {[%emt 0:00:14]} 35. Ra7 {[%emt 0:00:53]} Ne5 {[%emt 0:00:48]} 36. Bb7 {[%emt 0:01:22]} Rc1+ {[%emt 0:00:48]} 37. Kh2 {[%emt 0:00:01] Ra8+ would kill now.} h5 {[%emt 0:00:17][%cal Bh7h5,Bh5h4][%mdl 32]} 38. d6 {[%emt 0:00:48]} (38. Ra8+ $142 Kh7 39. e7 (39. Rxa6 Re1 $18) (39. Bxa6 Ng4+ 40. Kg3 Re1 $18) 39... Ng4+ 40. Kg3) 38... h4 {[%emt 0:00:33]} 39. Bf3 {[%emt 0:00:52] Weighted Error Value: White=0.11 (very precise) /Black=0.74.  Mistake:       	---       	Black=4      Inaccurate:     	---       	Black=6      OK:         	White=11    	Black=5      Best:        	White=2     	Black=1      Strong:       	White=2     	---} (39. d7 $142 Nxd7 40. Ra8+ (40. exd7 Rd1 $18) 40... Kh7 41. exd7 Rd1 42. d8=Q (42. d8=B Rd4 $18) (42. d8=R Re1 $18) 42... Rxd8 43. Rxd8 a5 44. Rd5 (44. Be4+ Kh6 $18)) 1-0

[Event "Bundesturnier Hauptturnier 1 2024"]
[Site "Olten"]
[Date "2024.05.12"]
[Round "7.2"]
[White "Loetscher, Roland"]
[Black "Gryshko, Vitalii"]
[Result "1/2-1/2"]
[ECO "A13"]
[WhiteElo "2384"]
[BlackElo "2316"]
[Annotator "ChessBase"]
[PlyCount "47"]
[EventDate "2024.05.09"]
[EventType "tourn"]
[EventCountry "SUI"]
[SourceTitle "playchess.com"]
[Source "ChessBase"]
[SourceQuality "1"]
[TimeControl "5400+30"]

1. c4 {[%emt 0:00:03]} e6 {[%emt 0:00:03]} 2. g3 {[%emt 0:00:10]} d5 {[%emt 0:00:03]} 3. Bg2 {[%emt 0:00:16]} d4 {[%emt 0:00:03]} 4. Nf3 {[%emt 0:00:22]} c5 {[%emt 0:00:06]} 5. e3 {[%emt 0:00:55]} Nc6 {[%emt 0:00:05]} 6. O-O {[%emt 0:04:18]} Nf6 {[%emt 0:00:03]} 7. exd4 {[%emt 0:00:56]} cxd4 {[%emt 0:00:04]} 8. d3 {[%emt 0:00:34]} Bd6 {[%emt 0:01:10]} 9. Bg5 {[%emt 0:00:25]} h6 {[%emt 0:00:31]} 10. Bxf6 {[%emt 0:00:08]} Qxf6 {[%emt 0:00:11]} 11. Nbd2 {[%emt 0:00:29]} Bc7 {[%emt 0:03:47]} 12. Ne1 {[%emt 0:07:45]} e5 {[%emt 0:07:12]} 13. Nc2 {[%emt 0:01:00]} a5 {[%emt 0:01:49]} 14. Na3 {[%emt 0:02:01]} O-O {[%emt 0:09:10]} 15. c5 {[%emt 0:17:04]} Qe7 {[%emt 0:07:42]} 16. Nb5 {[%emt 0:00:51]} Na7 {[%emt 0:00:47]} 17. Nxc7 {[%emt 0:03:42]} Qxc7 {[%emt 0:02:57]} 18. Rc1 {[%emt 0:06:22]} Be6 {[%emt 0:02:07]} 19. a3 {[%emt 0:06:02]} Nc6 {[%emt 0:01:39]} 20. Re1 {[%emt 0:01:52]} Rad8 {[%emt 0:02:07]} 21. Qh5 {[%emt 0:02:28]} Bd5 {[%emt 0:03:35]} 22. Nc4 {[%emt 0:07:14]} Bxg2 {[%emt 0:04:26]} 23. Kxg2 {[%emt 0:00:57]} Rd5 {[%emt 0:03:11]} 24. Nb6 {[%emt 0:01:42]} 1/2-1/2